Cogmind - Beta 15 @@@ ROGUE MODE // 2025.06.15 @ 15:38:54 Player: sheepie6 Result: Smashed by cave-in Performance ------------- Evolutions (0) 0 Regions Visited (0) 0 Robots Destroyed (5) 25 Value Destroyed (35) 35 Prototype IDs (0) 0 Alien Tech Used (0) 0 Bonus (0) 0 TOTAL SCORE: 60 Bonus ------- None Cogmind --------- Core Integrity 0/250 Matter 196/300 Energy 100/100 System Corruption 18% Temperature Cool (0) Movement Core (150) Ox2 Location -11/Scrapyard Parts ------- > --- POWER (1) -------- (None) > --- PROPULSION (2) --- (None) > --- UTILITY (2) ------ Small Storage Unit > --- WEAPON (2) ------- Assault Rifle > --- INVENTORY (8) ---- Light Ion Engine Light Treads Light Treads Wheel Compact Wheel Medium Laser Peak State ------------ > --- POWER ------------ Ion Engine > --- PROPULSION ------- Aluminum Leg Aluminum Leg > --- UTILITY ---------- Small Storage Unit Seismic Detector > --- WEAPON ----------- Assault Rifle Assault Rifle > --- INVENTORY -------- Light Ion Engine Light Treads Light Treads Wheel Compact Wheel Medium Laser Mining Laser [Rating: 7] Favorites ----------- Power Ion Engine Engine Ion Engine Propulsion Aluminum Leg Leg Aluminum Leg Utility Small Storage Unit Device Seismic Detector Storage Small Storage Unit Weapon Assault Rifle Ballistic Gun Assault Rifle Special Weapon Mining Laser Build | -11 ------- Run | Yrd Slots Evolved . | . Power . | . Propulsion . | . Utility . | . Weapon . | . Parts Attached 9 | 9 Power 1 | 1 Engine 1 | 1 Core . | . Reactor . | . Propulsion 2 | 2 Treads . | . Leg 2 | 2 Wheel . | . Hover . | . Flight . | . Utility 2 | 2 Device 1 | 1 Storage 1 | 1 Processor . | . Hackware . | . Protection . | . Artifact . | . Weapon 4 | 4 Energy Gun . | . Energy Cannon . | . Ballistic Gun 2 | 2 Ballistic Cannon . | . Launcher . | . Special Weapon 2 | 2 Impact Weapon . | . Slashing Weapon . | . Piercing Weapon . | . Special Melee Weapon . | . Unidentified Prototypes . | . Parts Lost 7 | 7 Power 1 | 1 Propulsion 2 | 2 Utility 1 | 1 Weapon 3 | 3 Highest Loss Streak 7 | 7 To Critical Strikes . | . Average Backups 6 | 6 Power . | . Propulsion 3 | 3 Utility . | . Weapon 1 | 1 Tool/Special . | . Unused Backups 6 | 6 Power 1 | 1 Propulsion 4 | 4 Utility . | . Weapon 1 | 1 Tool/Special . | . Average Slot Usage (%) . | . Peak Build Rating 7 | 7 Average Rating 6 | 6 On Entrance . | . Naked Turns . | . Heaviest Build 14 | 14 Greatest Support 20 | 20 Greatest Overweight (x) . | . Average Overweight (x) . | . Largest Inventory Capacity 8 | 8 Average Capacity 7 | 7 Most Carried 8 | 8 Average Carried 6 | 6 Final Capacity 8 | 8 Final Carried 6 | 6 Class Distribution -------------------- None Dominant Class ---------------- None Resources | -11 ----------- Run | Yrd Matter Collected 227 | 227 Remotely . | . Salvage Created 75 | 75 Parts 10 | 10 Haulers Intercepted . | . Recyclers Shooed . | . Parts Field Recycled . | . Retrieved Matter . | . Parts Self-Destructed . | . Prevented . | . Kills | -11 ------- Run | Yrd Combat Hostiles Destroyed . | . Classes Destroyed 1 | 1 Tunneler 5 | 5 Best Kill Streak 2 | 2 Combat Bots Only . | . Max Kills in Single Turn 1 | 1 Gunslinging . | . Exploded . | . Melee . | . Uniques/NPCs Destroyed . | . Combat | -11 -------- Run | Yrd Hostile Shots Fired . | . Missed . | . Hits . | . Damage Taken 1077 | 1077 Core 273 | 273 Absorbed by Shields . | . Core Remaining (%) . | . Volleys Fired 65 | 65 Largest 2 | 2 Hottest 200 | 200 Shots Fired 86 | 86 Gun 24 | 24 Cannon . | . Launcher . | . Special 62 | 62 Kinetic 24 | 24 Thermal 62 | 62 Explosive . | . Electromagnetic . | . Robot Hit Streak 3 | 3 Robot Miss Streak 2 | 2 Penetration Max . | . Secondary Targets . | . Shots Hit Robots 10 | 10 Core Hits 6 | 6 Critical Kills . | . Critical Parts Destroyed . | . Critical Strikes . | . Melee Attacks . | . Impact . | . Slashing . | . Piercing . | . Sneak Attacks . | . Combat Hostiles . | . Follow-up Attacks . | . Damage Inflicted 177 | 177 Guns 150 | 150 Cannons . | . Explosions . | . Melee . | . Ramming 27 | 27 Kinetic 150 | 150 Thermal . | . Explosive . | . Electromagnetic . | . Impact . | . Slashing . | . Piercing . | . Highest Corruption 18 | 18 Average Corruption 10 | 10 Corruption Purged . | . Corruption Blocked . | . Effects 2 | 2 Heat Flow Errors 1 | 1 Alerts 1 | 1 Overload Shots . | . Overflow Damage . | . Projectiles . | . Explosions . | . Melee . | . Knockbacks 1 | 1 Impact 1 | 1 Kinetic . | . Secondary . | . Self-Inflicted Damage . | . Shots . | . Rammed . | . Targets Rammed 4 | 4 Kicked 4 | 4 Crushed . | . Highest Temperature 320 | 320 Average Temperature 82 | 82 Received Heat Transfer . | . Effects 1 | 1 Short Circuit 1 | 1 Siege Activations . | . Martial Activations . | . Shielding Activations . | . Robots Disrupted . | . Combat Hostiles . | . Robots Corrupted . | . Combat Hostiles . | . Parts Fried . | . Impact Corruptions . | . Robots Melted . | . Combat Hostiles . | . Parts Melted . | . Heat Transferred . | . Parts Sabotaged . | . Parts Stolen . | . Parts Stripped . | . Power Chain Reactions . | . Alert | -11 ------- Run | Yrd Maximum Alert Level . | . Low Security (%) 100 | 100 Level 1 . | . Level 2 . | . Level 3 . | . Level 4 . | . Level 5 . | . High Security . | . Max Security . | . Peak Influence 25 | 25 Initial . | . Average . | . Influence Increases 25 | 25 Destroy 0b10 Robot/NC 25 | 25 Influence Decreases 25 | 25 Lost Part 25 | 25 Squads Dispatched . | . Investigation . | . Extermination . | . Reinforcement . | . Assault . | . Garrison . | . Intercept . | . Searches Triggered . | . Construction Impeded . | . Haulers Reinforced . | . Active Scanning Responses . | . Cargo Convoy Interrupts . | . Stealth | -11 --------- Run | Yrd Distress Signals . | . Communications Jammed . | . Distress Signals . | . Times Spotted . | . Peak Tracking Total . | . Tactical Retreats . | . Traps | -11 ------- Run | Yrd Traps Triggered . | . Indirectly . | . Trap Hack Attempts . | . Triggered . | . Disarmed . | . Reprogrammed . | . Reused . | . Traps Extracted . | . Installed . | . Triggered . | . Machines | -11 ---------- Run | Yrd Machines Disabled . | . Max in Single Turn . | . Machines Repaired . | . Machines Dismantled . | . Machines Sabotaged . | . Overloaded Fab Kills . | . Hacking | -11 --------- Run | Yrd Machines Accessed . | . Terminals . | . Fabricators . | . Repair Stations . | . Recycling Units . | . Scanalyzers . | . Garrison Access . | . Total Hacks . | . Successful . | . Failed . | . Catastrophic . | . Database Lockouts . | . Manual . | . Terminals . | . Fabricators . | . Repair Stations . | . Recycling Units . | . Scanalyzers . | . Garrison Access . | . Terminal Hacks . | . Fabricator Hacks . | . Repair Station Hacks . | . Recycling Unit Hacks . | . Scanalyzer . | . Garrison Access Hacks . | . Unauthorized Hacks . | . Terminals . | . Fabricators . | . Repair Stations . | . Recycling Units . | . Scanalyzers . | . Garrison Access . | . Data Cores Recovered . | . Used . | . Hacking Detections . | . Full Trace Events . | . Feedback Events . | . Feedback Blocked . | . Robot Schematics Acquired . | . Robots Built . | . Authchips . | . Time . | . Total Robot Build Rating . | . Part Schematics Acquired . | . Parts Built . | . Authchips . | . Time . | . Total Part Build Rating . | . Parts Repaired . | . Time . | . Parts Recycled . | . Recycled Matter . | . Retrieved Matter . | . Retrieved Components . | . Parts Scanalyzed . | . Part Schematics Acquired . | . Parts Damaged . | . Bothacking | -11 ------------ Run | Yrd Used RIF Installer . | . Robots Hacked . | . Non-combat . | . Combat . | . Robot Hacks Applied . | . Relay Couplers Released . | . Fabnet Peak Effective % . | . Robots Rewired . | . Allies Hacked . | . Hacks Repelled . | . Allies | -11 -------- Run | Yrd Total Allies . | . Largest Group . | . Highest-Rated Group . | . Highest-Rated Ally . | . Total Orders . | . Ally Attacks . | . Total Damage . | . Kills . | . Allies Corrupted . | . Allies Melted . | . Intel | -11 ------- Run | Yrd Active Infowar (turns) 442 | 442 Seismic 442 | 442 Robot Analysis Total . | . Derelict Logs Recovered . | . Drone Launches . | . Drone Recoveries . | . Exploration | -11 ------------- Run | Yrd Turns Passed 14377 | 14377 Spaces Moved 1634 | 1634 Core 15 | 15 Treads . | . Legs 1619 | 1619 Wheels . | . Hover . | . Flight . | . Fastest Speed 50 | 50 Average Speed 119 | 119 Slowest Speed 120 | 120 Overloaded Moves . | . Propulsion Burnouts . | . Robots Hopped . | . Potential Cave-ins 13 | 13 Cave-ins Triggered 5 | 5 Exploration Rate (%) 98 | 98 Regions Visited . Branch Regions . Pre-discovered Areas . | . Known Exits Taken . | . Unknown Exits Taken . | . Scrap Searched . | . Spaces Dug 31 | 31 Terrain Destroyed 33 | 33 Melee . | . Projectile 33 | 33 AOE . | . Terrain Rammed . | . Walls Destroyed . | . Machines Disabled . | . Actions | -11 --------- Run | Yrd Total 13849 | 13849 Wait 12120 | 12120 Move 1634 | 1634 Hop . | . Pick Up 15 | 15 Fast Attach . | . Attach 9 | 9 Detach . | . Swap 2 | 2 Drop . | . Fire 65 | 65 Melee . | . Ram . | . Kick 4 | 4 Crush . | . Escape Stasis . | . Rewire . | . Trap . | . Miscellaneous . | . Route ------- -11/Scrapyard (discovered 1 exit: [*Mat]) History --------- Turn | Location | Event 27 | -11/Scrapyard | Discovered new exit (range 15) 14332 | -11/Scrapyard | Crushed by falling debris 14352 | -11/Scrapyard | Crushed by falling debris 14352 | -11/Scrapyard | System corruption reached 10% 14359 | -11/Scrapyard | Crushed by falling debris 14359 | -11/Scrapyard | Core integrity fell below 50% 14377 | -11/Scrapyard | Crushed by falling debris 14379 | -11/Scrapyard | Crushed by falling debris 14379 | -11/Scrapyard | Smashed by cave-in Last Messages --------------- 14332_ System corrupted by crushing effect (+1). 14345_ System corrupted: IFF burst signal emitted. 14352_ The unstable cave ceiling collapses. 14352_ Crushed by falling debris. 14352_ Ion Engine destroyed. 14352_ System corrupted by crushing effect (+1). 14352_ Aluminum Leg destroyed. 14352_ System corrupted by crushing effect (+2). 14359_ The unstable cave ceiling collapses. 14359_ Crushed by falling debris. 14359_ Assault Rifle destroyed. 14359_ System corrupted by crushing effect (+5). 14360_ System corrupted: Heat flow error (+237). 14377_ The unstable cave ceiling collapses. 14377_ Crushed by falling debris. 14377_ Aluminum Leg destroyed. 14377_ System corrupted by crushing effect (+3). 14379_ The unstable cave ceiling collapses. 14379_ Crushed by falling debris. Map ----- +----------------------------------------------------+ | | | | | | | | | | | | | | | | | | | | | ?????????????????????????????????????????????????? | | ?????????????????????????????????????????????????? | | ?????????????????????????????????????????????????? | | ?????????????????????????????????????????????????? | | ?????????????????????????????????###?####?###????? | | ??????????????????????????????#### ### ### ###??? | | ??????????????????????????????##### # ## #??? | | ????????????????????????????### # ## ## ##??? | | ????????????????????????????###### #### ##???? | | ???????????????????????????## ##?# ## ### ##????? | | ??????????????????????????### #??## ### ##?????? | | ?????????????????????????## ###???# ##??????? | | ????????????????????????## ##????## ##???????? | | ????????????????????????####?????# ###????????? | | ????????????????????????###??????# #??????????? | | ????????????????????????#@#??????### #??????????? | | ????????????????????????###????????# #??????????? | | ???????????????????????????????????# #??????????? | | ???????????????????????????????????# #??????????? | | ???????????????????????????????????# #??????????? | | #??????????????????????????????????# #??????????? | | ##?????????????????????????????????# #??????????? | | #?????????????????????????????????# ########???? | | #?????????????????????????????????# # #???? | | #???????????????????????????????### # ##### | | ##??????????????????????????????# # | | #??????????????????????????????# # ##### | | #???????????????????????????###### # #??# | | ######??????????????????????# #??# | | # #??????????????????????# # ########??# | | # #??????????????????????# # #?? #??# | | # #??????????????????????# # #? #??# | | ### #??????????????????????# # #? #??# | | #??????????????????????# # # #??## | | ### #??????????????????????# # # #???? | | ??# #??????????????????????###### #???? | | ??# #???????????????????????????# ###########? | | ### #######?????????????????????# # #? | | ### ### #?????????????????????# # ## | | #?????????????????????# # # | +----------------------------------------------------+ Best States ------------- Heat Dissipation 25 Energy Generation 10 Energy Capacity 250 Matter Stores 208 Matter Capacity 300 Sight Range 16 Terrain Scan Density 10 Evasion (%) 55 Item Schematics ----------------- None Robot Schematics ------------------ None Fabricated ------------ Nothing Repaired ---------- Nothing Alien Tech Used ----------------- None Achievements -------------- None Challenges ------------ None Game ------ Seed ParticleKineticEngine Manual? 0 Play Time 00:40:14 Cumulative 18.6 hours Start 2025.06.15 @ 15:16:53 End 2025.06.15 @ 15:38:54 Sessions 0 Manual Loads 0 Difficulty Rogue Special Mode None Game No. 23 Rogue 23 Adventurer 0 Explorer 0 Win Type - Total 0 Types 0/0/0/0/0/0/0/0/0/0 Lore% 16 Gallery% 22 Achievement% 25 Wizard Run 0 Options --------- Layout 1 ASCII 0 Keyboard 0 Movement Numpad Keybinds 0 Fullscreen 2 Font 24/Smallcaps Map View 50x35 Zoom Use 0% Tactical HUD 1 Map Filters NONE Filters NONE Steam 1 RUN: 8fc40be6-a773-4f70-88a2-b3134afea919